Cogmind - Beta 9.1 @@@ ROGUE MODE // 2019.10.25 @ 18:50:04 // Halloween2019/Abominations Player: PhenomPhear Result: Core destroyed Performance ------------- Evolutions (1) 500 Regions Visited (2) 400 Robots Destroyed (21) 105 Value Destroyed (827) 827 Prototype IDs (0) 0 Alien Tech Used (0) 0 Bonus (0) 0 TOTAL SCORE: 1832 Bonus ------- None Cogmind --------- Core Integrity 0/400 Matter 300/300 Energy 100/100 System Corruption 4% Temperature Cool (0) Location -9/Materials Parts ------- Power (1) Propulsion (2) Utility (4) Weapon (2) Inventory (4) Medium Armor Plating Grenade Launcher Peak State ------------ Power Improved Ion Engine Propulsion Improved Treads Utility Small Storage Unit Medium Armor Plating Medium Armor Plating Medium Armor Plating Weapon Beam Cannon Assault Rifle Inventory Light Ion Engine Grenade Launcher [Rating: 13] Favorites ----------- Power Improved Ion Engine Engine Improved Ion Engine Propulsion Light Treads Treads Light Treads Leg Aluminum Leg Utility Small Storage Unit Device Heat Sink Storage Small Storage Unit Protection Medium Armor Plating Weapon Assault Rifle Energy Gun Medium Laser Energy Cannon Beam Cannon Ballistic Gun Assault Rifle Build | -11 -10 -9 ------- Run | Scr Mat Mat Slots Evolved 2 | . . 2 Power . | . . . Propulsion . | . . . Utility 2 | . . 2 Weapon . | . . . Parts Attached 28 | 6 4 18 Power 6 | 1 1 4 Engine 6 | 1 1 4 Core . | . . . Reactor . | . . . Propulsion 5 | 2 . 3 Treads 3 | 2 . 1 Leg 2 | . . 2 Wheel . | . . . Hover . | . . . Flight . | . . . Utility 11 | 1 1 9 Device 4 | . 1 3 Storage 2 | 1 . 1 Processor . | . . . Hackware . | . . . Protection 5 | . . 5 Artifact . | . . . Weapon 6 | 2 2 2 Energy Gun 3 | 1 1 1 Energy Cannon 1 | . . 1 Ballistic Gun 2 | 1 1 . Ballistic Cannon . | . . . Launcher . | . . . Special Weapon . | . . . Impact Weapon . | . . . Slashing Weapon . | . . . Piercing Weapon . | . . . Special Melee Weapon . | . . . Unidentified Prototypes . | . . . Parts Lost 20 | . 2 18 Power 2 | . . 2 Propulsion 5 | . . 5 Utility 7 | . . 7 Weapon 6 | . 2 4 Highest Loss Streak 8 | . 1 8 Average Slot Usage (%) 74 | . 89 65 Engine 11 | . 14 10 Treads 15 | . 28 8 Leg 2 | . . 4 Device 6 | . 4 6 Storage 11 | . 14 10 Protection 4 | . . 7 Energy Gun 4 | . 11 . Energy Cannon 3 | . . 5 Ballistic Gun 13 | . 16 11 Naked Turns 26 | . . 26 Heaviest Build 37 | 10 13 37 Greatest Support 40 | 40 40 40 Greatest Overweight (x) 4 | . . 4 Average Overweight (x) . | . . . Largest Inventory Capacity 6 | 6 6 6 Average Capacity 5 | 5 6 5 Most Carried 6 | 2 6 6 Average Carried 3 | 1 4 2 Final Capacity 4 | . . 4 Final Carried 2 | . . 2 Class Distribution -------------------- 88% | Mutant 11% | Scavenger-Mutant Dominant Class ---------------- Mutant | -10/Materials Mutant | -9/Materials Resources | -11 -10 -9 ----------- Run | Scr Mat Mat Matter Collected 801 | 183 128 490 Remotely 154 | . . 154 Salvage Created 894 | . 310 584 Parts 43 | . 9 34 Haulers Intercepted 1 | . . 1 Recyclers Shooed . | . . . Parts Field Recycled . | . . . Retrieved Matter . | . . . Parts Self-Destructed . | . . . Prevented . | . . . Kills | -11 -10 -9 ------- Run | Scr Mat Mat Combat Hostiles Destroyed 18 | . 8 10 Guns 15 | . 8 7 Cannons 3 | . . 3 Classes Destroyed 6 | . 2 4 Worker 1 | . . 1 Hauler 1 | . . 1 Recycler 1 | . . 1 Grunt 10 | . 7 3 Sentry 1 | . . 1 Abomination 7 | . 1 6 Best Kill Streak 3 | . 3 3 Combat Bots Only 3 | . 3 3 Max Kills in Single Turn 1 | . 1 1 Gunslinging . | . . . Exploded . | . . . Melee . | . . . Uniques/NPCs Destroyed . | . . . Combat | -11 -10 -9 -------- Run | Scr Mat Mat Damage Taken 2741 | . 517 2224 Core 459 | . 59 400 Absorbed by Shields . | . . . Core Remaining (%) 88 | 100 76 . Volleys Fired 134 | . 35 99 Largest 2 | . 2 2 Hottest 80 | . 70 80 Shots Fired 210 | . 70 140 Gun 176 | . 70 106 Cannon 34 | . . 34 Launcher . | . . . Special . | . . . Kinetic 146 | . 41 105 Thermal 64 | . 29 35 Explosive . | . . . Electromagnetic . | . . . Robot Hit Streak 12 | . 10 12 Robot Miss Streak 7 | . 2 7 Penetration Max . | . . . Secondary Targets 1 | . . 1 Max Gunslinging Chain 1 | . . 1 Shots Hit Robots 144 | . 49 95 Core Hits 55 | . 18 37 Critical Hits 1 | . . 1 Critical Kills . | . . . Critical Parts Destroyed 1 | . . 1 Melee Attacks . | . . . Impact . | . . . Slashing . | . . . Piercing . | . . . Sneak Attacks . | . . . Combat Hostiles . | . . . Follow-up Attacks . | . . . Damage Inflicted 1997 | . 527 1470 Guns 1486 | . 527 959 Cannons 497 | . . 497 Explosions . | . . . Melee . | . . . Ramming 14 | . . 14 Kinetic 1181 | . 222 959 Thermal 802 | . 305 497 Explosive . | . . . Electromagnetic . | . . . Impact . | . . . Slashing . | . . . Piercing . | . . . Highest Corruption 4 | . . 4 Average Corruption 1 | . . 1 Corruption Purged . | . . . Effects 4 | . . 4 Matter Fused 1 | . . 1 Heat Flow Errors 1 | . . 1 Energy Discharges 1 | . . 1 Targeting Errors 1 | . . 1 Overload Shots . | . . . Overflow Damage 6 | . . 6 Projectiles 6 | . . 6 Explosions . | . . . Melee . | . . . Knockbacks . | . . . Impact . | . . . Kinetic . | . . . Secondary . | . . . Self-Inflicted Damage . | . . . Shots . | . . . Rammed 5 | . . 5 Targets Rammed 5 | . . 5 Kicked . | . . . Crushed . | . . . Highest Temperature 575 | . 130 575 Average Temperature 114 | . 44 152 Received Heat Transfer 690 | . 264 426 Effects 9 | . . 9 Shutdowns 2 | . . 2 Matter Decay 1 | . . 1 Damage (minor) 1 | . . 1 Damage (major) 5 | . . 5 Siege Activations . | . . . Robots Corrupted . | . . . Combat Hostiles . | . . . Parts Fried 2 | . . 2 Impact Corruptions . | . . . Robots Melted . | . . . Combat Hostiles . | . . . Parts Melted . | . . . Heat Transferred 1185 | . 832 353 Parts Sabotaged . | . . . Parts Stolen . | . . . Parts Stripped . | . . . Power Chain Reactions . | . . . Missiles Intercepted . | . . . Alert | -11 -10 -9 ------- Run | Scr Mat Mat Peak Influence 155 | . 155 107 Average Influence 42 | . 64 33 Maximum Alert Level . | . . . Low Security (%) 100 | . . . Level 1 . | . . . Level 2 . | . . . Level 3 . | . . . Level 4 . | . . . Level 5 . | . . . High Security . | . . . Max Security . | . . . Squads Dispatched 11 | . 5 6 Investigation 4 | . 2 2 Extermination . | . . . Reinforcement 5 | . 3 2 Assault 2 | . . 2 Garrison . | . . . Intercept . | . . . Construction Impeded . | . . . Haulers Reinforced . | . . . Stealth | -11 -10 -9 --------- Run | Scr Mat Mat Distress Signals 15 | . 5 10 Communications Jammed . | . . . Distress Signals . | . . . Times Spotted 45 | . 21 24 Peak Tracking Total 10 | . 3 10 Tactical Retreats 7 | . 5 2 Traps | -11 -10 -9 ------- Run | Scr Mat Mat Traps Triggered . | . . . Indirectly . | . . . Trap Hack Attempts . | . . . Triggered . | . . . Disarmed . | . . . Reprogrammed . | . . . Reused . | . . . Traps Extracted . | . . . Installed . | . . . Triggered . | . . . Machines | -11 -10 -9 ---------- Run | Scr Mat Mat Machines Disabled . | . . . Max in Single Turn . | . . . Machines Sabotaged . | . . . Garrisons Compromised . | . . . Overloaded Fab Kills . | . . . Fab Network Shutdowns . | . . . Hacking | -11 -10 -9 --------- Run | Scr Mat Mat Machines Accessed . | . . . Terminals . | . . . Fabricators . | . . . Repair Stations . | . . . Recycling Units . | . . . Scanalyzers . | . . . Garrison Access . | . . . Total Hacks . | . . . Successful . | . . . Failed . | . . . Catastrophic . | . . . Database Lockouts . | . . . Manual . | . . . Terminals . | . . . Fabricators . | . . . Repair Stations . | . . . Recycling Units . | . . . Scanalyzers . | . . . Garrison Access . | . . . Terminal Hacks . | . . . Fabricator Hacks . | . . . Repair Station Hacks . | . . . Recycling Unit Hacks . | . . . Scanalyzer . | . . . Garrison Access Hacks . | . . . Unauthorized Hacks . | . . . Terminals . | . . . Fabricators . | . . . Repair Stations . | . . . Recycling Units . | . . . Scanalyzers . | . . . Garrison Access . | . . . Data Cores Recovered . | . . . Used . | . . . Hacking Detections . | . . . Full Trace Events . | . . . Feedback Events . | . . . Feedback Blocked . | . . . Robot Schematics Acquired . | . . . Robots Built . | . . . Matter . | . . . Time . | . . . Total Robot Build Rating . | . . . Part Schematics Acquired . | . . . Parts Built . | . . . Matter . | . . . Time . | . . . Total Part Build Rating . | . . . Parts Repaired . | . . . Time . | . . . Parts Recycled . | . . . Recycled Matter . | . . . Retrieved Matter . | . . . Retrieved Components . | . . . Parts Scanalyzed . | . . . Part Schematics Acquired . | . . . Parts Damaged . | . . . Bothacking | -11 -10 -9 ------------ Run | Scr Mat Mat Used RIF Installer . | . . . Robots Hacked . | . . . Non-combat . | . . . Combat . | . . . Robot Hacks Applied . | . . . Relay Couplers Released . | . . . Robots Rewired . | . . . Allies Hacked . | . . . Hacks Repelled . | . . . Allies | -11 -10 -9 -------- Run | Scr Mat Mat Total Allies . | . . . Largest Group . | . . . Highest-Rated Group . | . . . Highest-Rated Ally . | . . . Total Orders . | . . . Ally Attacks . | . . . Total Damage . | . . . Kills . | . . . Allies Corrupted . | . . . Allies Melted . | . . . Intel | -11 -10 -9 ------- Run | Scr Mat Mat Robot Analysis Total . | . . . Derelict Logs Recovered . | . . . Drone Launches . | . . . Drone Recoveries . | . . . Exploration | -11 -10 -9 ------------- Run | Scr Mat Mat Turns Passed 1350 | 67 473 810 Spaces Moved 603 | 39 211 353 Core 92 | 5 . 87 Treads 456 | 34 211 211 Legs 55 | . . 55 Wheels . | . . . Hover . | . . . Flight . | . . . Fastest Speed 50 | 50 160 50 Average Speed 143 | 145 160 133 Slowest Speed 250 | 160 160 250 Overloaded Moves . | . . . Propulsion Burnouts . | . . . Robots Hopped . | . . . Cave-ins Triggered . | . . . Exploration Rate (%) 24 | 3 32 38 Regions Visited 2 Branch Regions . Pre-discovered Areas . | . . . Known Exits Taken . | . . . Unknown Exits Taken 2 | 1 1 . Scrap Searched . | . . . Spaces Dug . | . . . Terrain Destroyed . | . . . Melee . | . . . Projectile . | . . . AOE . | . . . Actions | -11 -10 -9 --------- Run | Scr Mat Mat Total 856 | 46 283 527 Wait 70 | . 29 41 Move 601 | 38 210 353 Hop . | . . . Pick Up 11 | 2 5 4 Fast Attach 15 | 6 1 8 Attach 10 | . 2 8 Detach 3 | . . 3 Swap 3 | . 1 2 Drop 4 | . . 4 Fire 134 | . 35 99 Melee . | . . . Ram . | . . . Kick . | . . . Crush 5 | . . 5 Escape Stasis . | . . . Rewire . | . . . Trap . | . . . Miscellaneous . | . . . Route ------- -11/Scrapyard -10/Materials -9/Materials History --------- Turn | Location | Event 25 | -11/Scrapyard | Discovered new exit (range 16) 68 | -11/Scrapyard | Entered Materials 125 | -10/Materials | Discovered new exit (range 16) 316 | -10/Materials | Build established: Mutant 514 | -10/Materials | Discovered new exit (range 15) 541 | -10/Materials | Entered another Materials area 541 | -9/Materials | Evolved 2 slots: Utility x2 900 | -9/Materials | Lost 6 parts (2n3u1w) 1018 | -9/Materials | Core integrity fell below 50% 1195 | -9/Materials | Discovered new exit (range 7) 1310 | -9/Materials | Core integrity fell below 20% 1351 | -9/Materials | Core destroyed Last Messages --------------- 01290_ Overheating: Med. Armor Plating damaged (-5). 01291_ Overheating: Med. Armor Plating damaged (-1). 01291_ Imp. Treads destroyed. 01292_ Overheating: Matter decay (-69). 01293_ Med. Armor Plating destroyed. 01295_ Beam Cannon destroyed. 01297_ Power failure, Imp. Ion Engine shutdown. 01299_ Assault Rifle destroyed. 01303_ Imp. Ion Engine destroyed. 01304_ Acquired 10 matter. 01305_ Acquired 2 matter. 01313_ Acquired 6 matter. 01316_ System corrupted: Matter fused (-10). 01316_ Acquired 10 matter. 01321_ Lgt. Ion Engine destroyed. 01325_ Dropped Sml. Storage Unit. 01326_ ALERT: Dispatching additional forces to engage threats. 01339_ System corrupted: Heat flow error (+150). 01350_ Hungry Anomaly eats Sml. Storage Unit. 01351_ Engulfed by violent ripples tearing at the fabric of space. Map ----- +----------------------------------------------------+ | ???????????????????????????????????????????????#%# | | ???????????????????????????????????????????????#%# | | ???????????????????????????????????????????????#%# | | ???????????????????????????????????????????????#%# | | ???????????????????????????????????????????????#%# | | ???????????????????????????????????????????????#%# | | ???????????????????????????????????????????????#%# | | ???????????????????????????????????????????????#%# | | ???????????????????????????????????????????????# # | | ???????????????????????????????????????????????#%# | | ?????????????????????? ???????????????????????##+# | | ?????????????????????? %??????????????????????#%% | | ??????????????????#####+#######???????????????#% | | ??????????????????# % #######+##??????# % | | ??????????????????# %% #??????#%"" | | ??????????????????# % % #??????#%"" | | ??????????????????# % % T% ########%"" | | ??????????????????# % % # #%% | | ????????????????### % %% % #%% %%%+ | | ?????????????????%%%% #%""" #% | | ????????????????????#%%% % % % %#%""" # % | | ????????????????????#%% % %%%% % % %"%""" ?# | | ????????????????????#%%%%%%%%% %% %%% #% # | | ???????? #########%%%####+####### #####??###+ | | ????????%%%%%%%%n%%%%%% #n %% #??# %######## | | ???????? % % %;@ #??# % % % | | ???????? %% %% % # #??# % % | | ????????%%%%########### # """ #??# ######## | | ??????????????????????# # """ #??# % #?####### | | ??????????????????????# # """ #?# ?# # | | ??????????????????????# # ## # + | | ??????????????????????# # """% ## # # | | ??????????????????????# # """ # < # # | | ??????????????????????# # """ ## # ! ### | | ??????????????????????# # ##"" ""# ! #?? | | ????????????????????### #######/###" "## #?? | | ????????????????????# #???# #?##"""### #?? | | ?????????????######## ##### #??#####?# """ #?? | | ?????????????# %+ %% #????????# """ #?? | | ?????????????# # #######????????# """ #?? | | ?????????????# %% # #??????????????# #?? | | ?????????????# #######??????????????#######?? | | ?????????????# #????????????????????????????? | | ?????????????# ?????????????????????????????? | | ?????????????#######?????????????????????????????? | | ?????????????????????????????????????????????????? | | ?????????????????????????????????????????????????? | | | | | | | +----------------------------------------------------+ Best States ------------- Heat Dissipation 48 Energy Generation 12 Energy Capacity 265 Matter Stores 300 Matter Capacity 300 Sight Range 16 Terrain Scan Density 10 Armor Coverage 675 Evasion (%) 50 Recoil Reduction 2 Item Schematics ----------------- None Robot Schematics ------------------ None Fabricated ------------ Nothing Alien Tech Used ----------------- None Achievements -------------- None Challenges ------------ None Game ------ Seed PulseHardenedRegenerator Manual? 0 Play Time 00:18:54 Cumulative 1012.5 hours Start 2019.10.25 @ 18:24:37 End 2019.10.25 @ 18:50:04 Sessions 3 Manual Loads 0 Difficulty Rogue Special Mode Halloween2019/Abominations Game No. 599 Rogue 599 Adventurer 0 Explorer 0 Win Type - Total 17 Types 9/1/4/3/0/0/0 Lore% 89 Gallery% 94 Achievement% 80 Wizard Run 0 Options --------- ASCII 0 Keyboard 0 Movement Mouse Keybinds 0 Fullscreen 2 Font 24/Crisp Map View 76x50 Tactical HUD 1 Map Filters NONE Filters NONE Steam 1 RUN: da8cf049-398e-4d45-957e-f6684e074d17